[Event "Early-Titled-Tuesday-Blitz-July-09-2024"]
[Site "Chess.com"]
[Date "2024.07.09"]
[Round "4"]
[White "MagnusCarlsen"]
[Black "ViIIagra"]
[Result "1-0"]
[WhiteElo "3180"]
[BlackElo "2874"]
[TimeControl "180+1"]
[EndTime "8:37:22 PDT"]
[Termination "MagnusCarlsen won by resignation"]

1. e4 {[%clk 0:03:00.9]} 1... c5 {[%clk 0:02:58.2]} 2. Nf3 {[%clk 0:03:00.2]}
2... d6 {[%clk 0:02:58.2]} 3. Bc4 {[%clk 0:03:00.1]} 3... Nf6 {[%clk 0:02:56.7]}
4. d3 {[%clk 0:02:59.8]} 4... e6 {[%clk 0:02:51.5]} 5. O-O {[%clk 0:02:59.5]}
5... Be7 {[%clk 0:02:52]} 6. Bb3 {[%clk 0:02:59.3]} 6... O-O {[%clk 0:02:51.2]}
7. c3 {[%clk 0:02:59.8]} 7... Nc6 {[%clk 0:02:44.1]} 8. Re1 {[%clk 0:03:00.1]}
8... Qc7 {[%clk 0:02:41.6]} 9. d4 {[%clk 0:03:00]} 9... cxd4 {[%clk 0:02:26.5]}
10. cxd4 {[%clk 0:02:59.6]} 10... d5 {[%clk 0:02:27.1]} 11. e5 {[%clk
0:02:59.4]} 11... Ne4 {[%clk 0:02:27.7]} 12. Nc3 {[%clk 0:02:45.8]} 12... Nxc3
{[%clk 0:02:09.7]} 13. bxc3 {[%clk 0:02:46.7]} 13... Na5 {[%clk 0:02:10.3]} 14.
Bc2 {[%clk 0:02:46.6]} 14... Qxc3 {[%clk 0:02:01.9]} 15. Bd2 {[%clk 0:02:40.5]}
15... Qc7 {[%clk 0:02:00.9]} 16. Ng5 {[%clk 0:02:41]} 16... g6 {[%clk
0:01:31.3]} 17. Nxh7 {[%clk 0:02:25.7]} 17... Kxh7 {[%clk 0:01:09.5]} 18. Qh5+
{[%clk 0:02:25]} 18... Kg8 {[%clk 0:01:07.7]} 19. Bxg6 {[%clk 0:02:24.7]} 19...
fxg6 {[%clk 0:01:08.6]} 20. Qxg6+ {[%clk 0:02:25.6]} 20... Kh8 {[%clk
0:01:08.6]} 21. Re3 {[%clk 0:02:24.7]} 21... Bh4 {[%clk 0:01:02.7]} 22. Rh3
{[%clk 0:02:19.9]} 22... Qh7 {[%clk 0:00:51.1]} 23. Qxh7+ {[%clk 0:02:20.1]}
23... Kxh7 {[%clk 0:00:50.6]} 24. Rxh4+ {[%clk 0:02:21]} 24... Kg6 {[%clk
0:00:46.9]} 25. Bxa5 {[%clk 0:02:21.9]} 25... Bd7 {[%clk 0:00:47.4]} 26. Bb4
{[%clk 0:02:21]} 26... Rfc8 {[%clk 0:00:43.9]} 27. Rg4+ {[%clk 0:02:21]} 27...
Kf7 {[%clk 0:00:39.8]} 28. Rf4+ {[%clk 0:02:20.2]} 28... Kg7 {[%clk 0:00:39]}
29. h4 {[%clk 0:02:19.8]} 29... Rc4 {[%clk 0:00:39]} 30. Be7 {[%clk 0:02:19.7]}
30... Ba4 {[%clk 0:00:30.7]} 31. g4 {[%clk 0:02:18.1]} 31... Bc2 {[%clk
0:00:30.2]} 32. Kh2 {[%clk 0:02:17.6]} 32... Re8 {[%clk 0:00:28.1]} 33. Bf6+
{[%clk 0:02:17.4]} 33... Kg6 {[%clk 0:00:28.5]} 34. h5+ {[%clk 0:02:17.5]} 34...
Kh6 {[%clk 0:00:28.8]} 35. Rg1 {[%clk 0:02:17.8]} 35... b5 {[%clk 0:00:24.3]}
36. g5+ {[%clk 0:02:18.2]} 36... Kh7 {[%clk 0:00:20.5]} 37. g6+ {[%clk
0:02:18.3]} 37... Kh6 {[%clk 0:00:21]} 38. Bg5+ {[%clk 0:02:18.9]} 1-0

[Event "Early-Titled-Tuesday-Blitz-July-09-2024"]
[Site "Chess.com"]
[Date "2024.07.09"]
[Round "4"]
[White "Zhigalko_Sergei"]
[Black "Suleyman_Chess06"]
[Result "1-0"]
[WhiteElo "2935"]
[BlackElo "2742"]
[TimeControl "180+1"]
[EndTime "8:37:35 PDT"]
[Termination "Zhigalko_Sergei won by resignation"]

1. e4 {[%clk 0:03:00.9]} 1... e6 {[%clk 0:03:00.4]} 2. d4 {[%clk 0:03:00.7]}
2... d5 {[%clk 0:03:01]} 3. e5 {[%clk 0:03:01.3]} 3... c5 {[%clk 0:03:00.9]} 4.
c3 {[%clk 0:03:01.8]} 4... Nc6 {[%clk 0:03:01.5]} 5. Nf3 {[%clk 0:03:02.3]} 5...
Qb6 {[%clk 0:03:02.2]} 6. a3 {[%clk 0:03:00.6]} 6... c4 {[%clk 0:03:01.7]} 7.
Nbd2 {[%clk 0:03:00.2]} 7... Na5 {[%clk 0:03:02.4]} 8. Be2 {[%clk 0:03:00.4]}
8... Bd7 {[%clk 0:03:02.8]} 9. O-O {[%clk 0:03:00.7]} 9... Ne7 {[%clk
0:03:03.4]} 10. Rb1 {[%clk 0:03:00.1]} 10... Nc8 {[%clk 0:03:03.8]} 11. b4
{[%clk 0:02:54.2]} 11... cxb3 {[%clk 0:03:03.8]} 12. c4 {[%clk 0:02:55.1]} 12...
dxc4 {[%clk 0:03:02]} 13. Nxc4 {[%clk 0:02:51.8]} 13... Nxc4 {[%clk 0:03:02.2]}
14. Bxc4 {[%clk 0:02:52.5]} 14... Qc7 {[%clk 0:03:02.1]} 15. Bxb3 {[%clk
0:02:46.3]} 15... Nb6 {[%clk 0:03:02.5]} 16. Ng5 {[%clk 0:02:37]} 16... h6
{[%clk 0:02:51.4]} 17. Qh5 {[%clk 0:02:23.7]} 17... g6 {[%clk 0:02:39.3]} 18.
Qh3 {[%clk 0:02:21.2]} 18... Bg7 {[%clk 0:02:26.3]} 19. Ne4 {[%clk 0:02:21.1]}
19... O-O-O {[%clk 0:02:25.3]} 20. Nd6+ {[%clk 0:02:18.3]} 20... Kb8 {[%clk
0:02:25.6]} 21. Nxf7 {[%clk 0:02:18.3]} 21... g5 {[%clk 0:02:24]} 22. Nxh8
{[%clk 0:02:13.5]} 22... Bxh8 {[%clk 0:02:24.9]} 23. Bxe6 {[%clk 0:02:05.2]}
23... Bxe6 {[%clk 0:02:22]} 24. Qxe6 {[%clk 0:02:06.1]} 24... Rxd4 {[%clk
0:02:20.3]} 25. Be3 {[%clk 0:02:03.1]} 25... Rd8 {[%clk 0:02:20.8]} 26. Bxb6
{[%clk 0:01:44.3]} 26... axb6 {[%clk 0:02:20.9]} 27. Qxb6 {[%clk 0:01:44]} 27...
Bxe5 {[%clk 0:02:18.5]} 28. Qxc7+ {[%clk 0:01:43.6]} 28... Kxc7 {[%clk
0:02:13.6]} 29. Rfc1+ {[%clk 0:01:43.3]} 29... Kb8 {[%clk 0:02:13.9]} 30. Rd1
{[%clk 0:01:43.2]} 30... Bd4 {[%clk 0:01:57.6]} 31. Kf1 {[%clk 0:01:38.8]} 31...
Kc7 {[%clk 0:01:57.6]} 32. Rbc1+ {[%clk 0:01:37.5]} 32... Kb6 {[%clk 0:01:57.1]}
33. Rc4 {[%clk 0:01:36.4]} 33... Bf6 {[%clk 0:01:57.2]} 34. Rxd8 {[%clk
0:01:33.8]} 34... Bxd8 {[%clk 0:01:58.1]} 35. a4 {[%clk 0:01:28.2]} 35... Be7
{[%clk 0:01:53.9]} 36. Re4 {[%clk 0:01:26.1]} 36... Bf8 {[%clk 0:01:51.6]} 37.
f4 {[%clk 0:01:18]} 37... gxf4 {[%clk 0:01:49.6]} 38. Rxf4 {[%clk 0:01:18.9]}
38... Be7 {[%clk 0:01:48.3]} 39. Re4 {[%clk 0:01:15]} 39... Bc5 {[%clk
0:01:46.8]} 40. g4 {[%clk 0:01:02.1]} 40... Ka5 {[%clk 0:01:45.8]} 41. h4 {[%clk
0:01:02.1]} 41... Bb4 {[%clk 0:01:41.3]} 42. g5 {[%clk 0:01:00.1]} 42... hxg5
{[%clk 0:01:42.2]} 43. hxg5 {[%clk 0:01:01]} 43... Bc3 {[%clk 0:01:42.9]} 44. g6
{[%clk 0:01:00.4]} 1-0

[Event "Early-Titled-Tuesday-Blitz-July-09-2024"]
[Site "Chess.com"]
[Date "2024.07.09"]
[Round "4"]
[White "tylityli"]
[Black "2KTNGO"]
[Result "0-1"]
[WhiteElo "2390"]
[BlackElo "2597"]
[TimeControl "180+1"]
[EndTime "8:37:37 PDT"]
[Termination "2KTNGO won by resignation"]

1. d4 {[%clk 0:02:55.1]} 1... Nf6 {[%clk 0:02:58.4]} 2. c4 {[%clk 0:02:55]} 2...
Nc6 {[%clk 0:02:57.7]} 3. Nf3 {[%clk 0:02:54.1]} 3... e6 {[%clk 0:02:57.4]} 4.
a3 {[%clk 0:02:54.5]} 4... d6 {[%clk 0:02:57]} 5. Nc3 {[%clk 0:02:54.3]} 5... g6
{[%clk 0:02:56.9]} 6. e4 {[%clk 0:02:53.3]} 6... Bg7 {[%clk 0:02:56.7]} 7. h3
{[%clk 0:02:50.6]} 7... O-O {[%clk 0:02:56.1]} 8. Be3 {[%clk 0:02:48.6]} 8...
Re8 {[%clk 0:02:54.4]} 9. b4 {[%clk 0:02:38.9]} 9... e5 {[%clk 0:02:52.6]} 10.
d5 {[%clk 0:02:21.3]} 10... Nd4 {[%clk 0:02:50.5]} 11. Be2 {[%clk 0:02:17.1]}
11... Nxe2 {[%clk 0:02:40.8]} 12. Qxe2 {[%clk 0:02:14.9]} 12... Nh5 {[%clk
0:02:40.4]} 13. g3 {[%clk 0:01:50.6]} 13... a5 {[%clk 0:02:39.1]} 14. b5 {[%clk
0:01:27.2]} 14... f5 {[%clk 0:02:37]} 15. Bg5 {[%clk 0:01:07.4]} 15... Qd7
{[%clk 0:02:23.4]} 16. b6 {[%clk 0:00:59]} 16... h6 {[%clk 0:02:11.1]} 17. Bd2
{[%clk 0:00:58.2]} 17... Nf6 {[%clk 0:02:06]} 18. bxc7 {[%clk 0:00:52.4]} 18...
Qxc7 {[%clk 0:02:00.5]} 19. Nb5 {[%clk 0:00:42.6]} 19... Qd8 {[%clk 0:01:56.7]}
20. Nc3 {[%clk 0:00:38.3]} 20... Nxe4 {[%clk 0:01:45.7]} 21. Nxe4 {[%clk
0:00:37.7]} 21... fxe4 {[%clk 0:01:45.6]} 22. Qxe4 {[%clk 0:00:37.4]} 22... Bf5
{[%clk 0:01:44.7]} 23. Qb1 {[%clk 0:00:18.6]} 23... Bxb1 {[%clk 0:01:40.8]} 0-1

[Event "Early-Titled-Tuesday-Blitz-July-09-2024"]
[Site "Chess.com"]
[Date "2024.07.09"]
[Round "4"]
[White "MusicCityMaster"]
[Black "elizabethcastaneda"]
[Result "1-0"]
[WhiteElo "2505"]
[BlackElo "2296"]
[TimeControl "180+1"]
[EndTime "8:37:38 PDT"]
[Termination "MusicCityMaster won by resignation"]

1. e4 {[%clk 0:03:00.9]} 1... c5 {[%clk 0:02:59.5]} 2. Nf3 {[%clk 0:03:00.1]}
2... d6 {[%clk 0:02:57.4]} 3. d4 {[%clk 0:02:59.8]} 3... cxd4 {[%clk 0:02:53.6]}
4. Nxd4 {[%clk 0:03:00.7]} 4... Nf6 {[%clk 0:02:53]} 5. Nc3 {[%clk 0:03:00.1]}
5... g6 {[%clk 0:02:37.6]} 6. Bg5 {[%clk 0:02:59.3]} 6... Bg7 {[%clk 0:02:36.8]}
7. Bb5+ {[%clk 0:02:59.3]} 7... Bd7 {[%clk 0:02:35.9]} 8. Qe2 {[%clk 0:02:59.7]}
8... O-O {[%clk 0:02:34.5]} 9. O-O-O {[%clk 0:02:59.8]} 9... Bxb5 {[%clk
0:02:34.3]} 10. Ndxb5 {[%clk 0:02:58.7]} 10... Qb6 {[%clk 0:02:33.7]} 11. f4
{[%clk 0:02:49.1]} 11... Nc6 {[%clk 0:02:30.3]} 12. Bxf6 {[%clk 0:02:45.2]}
12... Bxf6 {[%clk 0:02:28.6]} 13. Nd5 {[%clk 0:02:45.2]} 13... Qa6 {[%clk
0:02:23]} 14. Nxf6+ {[%clk 0:02:44.4]} 14... exf6 {[%clk 0:02:22.8]} 15. Kb1
{[%clk 0:02:40.9]} 15... Nb4 {[%clk 0:02:22.2]} 16. a3 {[%clk 0:02:28.8]} 16...
Nc6 {[%clk 0:02:00.3]} 17. Rxd6 {[%clk 0:02:13.3]} 17... Rfe8 {[%clk 0:02:00.3]}
18. Rhd1 {[%clk 0:02:04.7]} 18... Rac8 {[%clk 0:02:00.4]} 19. Rxf6 {[%clk
0:01:51.6]} 19... Qa4 {[%clk 0:01:41.8]} 20. Nc3 {[%clk 0:01:47.6]} 20... Qa5
{[%clk 0:01:41.6]} 21. Rd7 {[%clk 0:01:43.6]} 21... Ne7 {[%clk 0:01:37.5]} 22.
Qd3 {[%clk 0:01:27.3]} 22... b5 {[%clk 0:01:30.3]} 23. Nd5 {[%clk 0:01:12.1]}
23... Nc6 {[%clk 0:00:54.5]} 24. Rfxf7 {[%clk 0:01:10.1]} 24... b4 {[%clk
0:00:53.2]} 25. Nf6+ {[%clk 0:01:04.9]} 1-0

[Event "Early-Titled-Tuesday-Blitz-July-09-2024"]
[Site "Chess.com"]
[Date "2024.07.09"]
[Round "4"]
[White "Me_ch_an"]
[Black "Boudicca64"]
[Result "1-0"]
[WhiteElo "2309"]
[BlackElo "1932"]
[TimeControl "180+1"]
[EndTime "8:37:41 PDT"]
[Termination "Me_ch_an won on time"]

1. e4 {[%clk 0:03:00.9]} 1... g6 {[%clk 0:02:55.1]} 2. d4 {[%clk 0:02:56.8]}
2... Bg7 {[%clk 0:02:54.2]} 3. Nc3 {[%clk 0:02:56.1]} 3... c5 {[%clk 0:02:52.6]}
4. Nf3 {[%clk 0:02:55.4]} 4... Qa5 {[%clk 0:02:51]} 5. Be3 {[%clk 0:02:54.4]}
5... Nf6 {[%clk 0:02:49.2]} 6. Qd2 {[%clk 0:02:50.2]} 6... Ng4 {[%clk 0:02:47]}
7. Nd5 {[%clk 0:02:42.2]} 7... Qd8 {[%clk 0:02:21.1]} 8. Bf4 {[%clk 0:02:38.5]}
8... d6 {[%clk 0:02:16.5]} 9. dxc5 {[%clk 0:02:30.8]} 9... Bxb2 {[%clk 0:02:12]}
10. Rb1 {[%clk 0:02:30.8]} 10... Ba3 {[%clk 0:01:57.6]} 11. cxd6 {[%clk
0:02:19.6]} 11... Bxd6 {[%clk 0:01:47.6]} 12. e5 {[%clk 0:02:13.1]} 12... Bc5
{[%clk 0:01:09.2]} 13. h3 {[%clk 0:02:06.9]} 13... Nxf2 {[%clk 0:01:06.5]} 14.
e6 {[%clk 0:02:00]} 14... Ne4 {[%clk 0:00:38.1]} 15. exf7+ {[%clk 0:01:49.8]}
15... Kxf7 {[%clk 0:00:35.9]} 16. Ng5+ {[%clk 0:01:49.6]} 16... Nxg5 {[%clk
0:00:33.3]} 17. Bxg5 {[%clk 0:01:50.5]} 17... Be6 {[%clk 0:00:25.1]} 18. Bc4
{[%clk 0:01:50.2]} 18... Nc6 {[%clk 0:00:15.5]} 19. Rf1+ {[%clk 0:01:49.7]}
19... Kg7 {[%clk 0:00:07.2]} 20. Bh6+ {[%clk 0:01:48.7]} 20... Kg8 {[%clk
0:00:01.1]} 21. Nf6+ {[%clk 0:01:48.2]} 1-0

[Event "Early-Titled-Tuesday-Blitz-July-09-2024"]
[Site "Chess.com"]
[Date "2024.07.09"]
[Round "4"]
[White "Witty_Alien"]
[Black "AlbusSevresPotter"]
[Result "0-1"]
[WhiteElo "2393"]
[BlackElo "2606"]
[TimeControl "180+1"]
[EndTime "8:37:43 PDT"]
[Termination "AlbusSevresPotter won by checkmate"]

1. e4 {[%clk 0:03:00.9]} 1... c6 {[%clk 0:02:39.8]} 2. d4 {[%clk 0:02:57.9]}
2... d5 {[%clk 0:02:40.7]} 3. Nd2 {[%clk 0:02:58.1]} 3... g6 {[%clk 0:02:38.6]}
4. h4 {[%clk 0:02:27.5]} 4... dxe4 {[%clk 0:02:29.9]} 5. Nxe4 {[%clk 0:02:27.1]}
5... Nf6 {[%clk 0:02:30.8]} 6. Ng5 {[%clk 0:02:25.6]} 6... h6 {[%clk 0:02:29.7]}
7. Nxf7 {[%clk 0:02:25.8]} 7... Kxf7 {[%clk 0:02:29.3]} 8. Nf3 {[%clk
0:02:26.4]} 8... Nbd7 {[%clk 0:02:26]} 9. Bd3 {[%clk 0:02:14.5]} 9... Qc7 {[%clk
0:02:17.4]} 10. O-O {[%clk 0:02:08.8]} 10... e6 {[%clk 0:02:09.5]} 11. Re1
{[%clk 0:02:08.3]} 11... Bd6 {[%clk 0:02:09]} 12. Bxh6 {[%clk 0:01:41.8]} 12...
Rxh6 {[%clk 0:02:03.4]} 13. Ng5+ {[%clk 0:01:41.1]} 13... Kg8 {[%clk 0:01:56.2]}
14. Nxe6 {[%clk 0:01:35.1]} 14... Qa5 {[%clk 0:01:53.4]} 15. Bc4 {[%clk
0:00:35.4]} 15... Nb6 {[%clk 0:01:53.6]} 16. Qf3 {[%clk 0:00:27.3]} 16... Qf5
{[%clk 0:01:41.6]} 17. Qe3 {[%clk 0:00:02.4]} 17... Nxc4 {[%clk 0:01:39.8]} 18.
Qxh6 {[%clk 0:00:02.2]} 18... Bxe6 {[%clk 0:01:40.2]} 19. Rxe6 {[%clk
0:00:01.3]} 19... Qxe6 {[%clk 0:01:39.7]} 20. Re1 {[%clk 0:00:01.7]} 20... Qxe1#
{[%clk 0:01:38.7]} 0-1

[Event "Early-Titled-Tuesday-Blitz-July-09-2024"]
[Site "Chess.com"]
[Date "2024.07.09"]
[Round "4"]
[White "myburger"]
[Black "LunaTheTuna2013"]
[Result "1-0"]
[WhiteElo "2543"]
[BlackElo "2077"]
[TimeControl "180+1"]
[EndTime "8:37:44 PDT"]
[Termination "myburger won by resignation"]

1. d4 {[%clk 0:03:00.9]} 1... d5 {[%clk 0:02:58.4]} 2. Nc3 {[%clk 0:02:58]} 2...
e6 {[%clk 0:02:57.8]} 3. Bf4 {[%clk 0:02:58.2]} 3... Nf6 {[%clk 0:02:56.2]} 4.
Nb5 {[%clk 0:02:55.8]} 4... Na6 {[%clk 0:02:55.5]} 5. e3 {[%clk 0:02:52.3]} 5...
c6 {[%clk 0:02:55.3]} 6. Nc3 {[%clk 0:02:51.5]} 6... Bd6 {[%clk 0:02:53.3]} 7.
Bxa6 {[%clk 0:02:47]} 7... bxa6 {[%clk 0:02:51.5]} 8. Bxd6 {[%clk 0:02:46.4]}
8... Qxd6 {[%clk 0:02:50]} 9. Nf3 {[%clk 0:02:46.4]} 9... O-O {[%clk 0:02:49.3]}
10. O-O {[%clk 0:02:45.7]} 10... Bb7 {[%clk 0:02:45.8]} 11. Na4 {[%clk 0:02:44]}
11... Ne4 {[%clk 0:02:38.4]} 12. Nd2 {[%clk 0:02:42.6]} 12... Nxd2 {[%clk
0:02:36.4]} 13. Qxd2 {[%clk 0:02:41.4]} 13... e5 {[%clk 0:02:34.3]} 14. Nc5
{[%clk 0:02:40.1]} 14... Rab8 {[%clk 0:02:30.6]} 15. b4 {[%clk 0:02:36.1]} 15...
e4 {[%clk 0:02:19.5]} 16. c3 {[%clk 0:02:32.6]} 16... Bc8 {[%clk 0:02:16.7]} 17.
f4 {[%clk 0:02:25.5]} 17... exf3 {[%clk 0:02:07.9]} 18. Rxf3 {[%clk 0:02:21.2]}
18... a5 {[%clk 0:01:59.6]} 19. a3 {[%clk 0:02:18.7]} 19... Bg4 {[%clk
0:01:45.8]} 20. Rg3 {[%clk 0:02:16.6]} 20... f5 {[%clk 0:01:45]} 21. Rf1 {[%clk
0:02:12.9]} 21... Rbe8 {[%clk 0:01:36.4]} 22. Nb7 {[%clk 0:02:08.9]} 22... Qe6
{[%clk 0:01:26.9]} 23. Nxa5 {[%clk 0:02:05.8]} 23... Re7 {[%clk 0:01:00.1]} 24.
Nb3 {[%clk 0:02:02.6]} 24... Rfe8 {[%clk 0:01:00.2]} 25. Nc5 {[%clk 0:02:01.1]}
25... Qh6 {[%clk 0:00:50.6]} 26. Qf2 {[%clk 0:01:48.1]} 26... Rxe3 {[%clk
0:00:45.3]} 27. Rxg4 {[%clk 0:01:47.4]} 27... Rxc3 {[%clk 0:00:30.2]} 28. Qxf5
{[%clk 0:01:44.7]} 1-0

[Event "Early-Titled-Tuesday-Blitz-July-09-2024"]
[Site "Chess.com"]
[Date "2024.07.09"]
[Round "4"]
[White "Fandorine"]
[Black "isla88"]
[Result "1-0"]
[WhiteElo "2908"]
[BlackElo "2429"]
[TimeControl "180+1"]
[EndTime "8:37:51 PDT"]
[Termination "Fandorine won by resignation"]

1. c4 {[%clk 0:03:00.9]} 1... e6 {[%clk 0:02:57.6]} 2. g3 {[%clk 0:03:00.9]}
2... d5 {[%clk 0:02:58]} 3. Bg2 {[%clk 0:03:00.1]} 3... Nf6 {[%clk 0:02:56.9]}
4. Nf3 {[%clk 0:02:58.5]} 4... a6 {[%clk 0:02:56]} 5. Qc2 {[%clk 0:02:57.5]}
5... Nc6 {[%clk 0:02:54.1]} 6. O-O {[%clk 0:02:54.8]} 6... Rb8 {[%clk
0:02:53.5]} 7. d4 {[%clk 0:02:53.7]} 7... Nb4 {[%clk 0:02:49.5]} 8. Qb3 {[%clk
0:02:50.9]} 8... dxc4 {[%clk 0:02:47.1]} 9. Qxc4 {[%clk 0:02:50.3]} 9... b5
{[%clk 0:02:45.8]} 10. Qc3 {[%clk 0:02:50.7]} 10... Nbd5 {[%clk 0:02:45]} 11.
Qc6+ {[%clk 0:02:49]} 11... Bd7 {[%clk 0:02:36.3]} 12. Qc2 {[%clk 0:02:49.1]}
12... Nb4 {[%clk 0:02:24.8]} 13. Qd1 {[%clk 0:02:48]} 13... c5 {[%clk
0:02:23.9]} 14. dxc5 {[%clk 0:02:35.6]} 14... Bxc5 {[%clk 0:02:22.9]} 15. Ne5
{[%clk 0:02:36.3]} 15... O-O {[%clk 0:02:12.6]} 16. a3 {[%clk 0:02:35.6]} 16...
Nbd5 {[%clk 0:02:07.6]} 17. Bg5 {[%clk 0:02:31]} 17... Be7 {[%clk 0:01:48.1]}
18. Nxd7 {[%clk 0:02:26]} 18... Nxd7 {[%clk 0:01:37.9]} 19. Bxe7 {[%clk
0:02:24.6]} 19... Nxe7 {[%clk 0:01:38.5]} 20. Nc3 {[%clk 0:02:24.4]} 20... Nf6
{[%clk 0:01:36.2]} 21. Qb3 {[%clk 0:02:20.1]} 21... Qb6 {[%clk 0:01:33.9]} 22.
Qb4 {[%clk 0:02:17.4]} 22... Nc6 {[%clk 0:01:27]} 23. Bxc6 {[%clk 0:02:12.6]}
23... Qxc6 {[%clk 0:01:27.9]} 24. Rac1 {[%clk 0:02:12.8]} 24... Qb7 {[%clk
0:01:24.5]} 25. Rfd1 {[%clk 0:02:11.8]} 25... Rfd8 {[%clk 0:01:23.7]} 26. Qa5
{[%clk 0:02:10.5]} 26... Rxd1+ {[%clk 0:01:16.7]} 27. Rxd1 {[%clk 0:02:11.4]}
27... h5 {[%clk 0:01:14.1]} 28. h3 {[%clk 0:02:09.7]} 28... h4 {[%clk 0:01:12]}
29. g4 {[%clk 0:02:03.6]} 29... Kh7 {[%clk 0:01:09.6]} 30. Qb4 {[%clk
0:01:59.6]} 30... Rc8 {[%clk 0:01:02.8]} 31. g5 {[%clk 0:01:58.2]} 31... Rc4
{[%clk 0:00:52.9]} 32. Qd6 {[%clk 0:01:57]} 32... Ne4 {[%clk 0:00:39.7]} 33. Qd3
{[%clk 0:01:54.7]} 33... g6 {[%clk 0:00:40.2]} 34. Qf3 {[%clk 0:01:52.9]} 34...
Kg7 {[%clk 0:00:27.3]} 35. Nxe4 {[%clk 0:01:44.9]} 35... Qxe4 {[%clk 0:00:23]}
36. Qf6+ {[%clk 0:01:45.1]} 36... Kh7 {[%clk 0:00:22.4]} 37. Qxf7+ {[%clk
0:01:45.3]} 1-0

[Event "Early-Titled-Tuesday-Blitz-July-09-2024"]
[Site "Chess.com"]
[Date "2024.07.09"]
[Round "4"]
[White "KhamzinOlzhas"]
[Black "xh4823"]
[Result "1-0"]
[WhiteElo "2569"]
[BlackElo "2359"]
[TimeControl "180+1"]
[EndTime "8:37:56 PDT"]
[Termination "KhamzinOlzhas won by checkmate"]

1. d4 {[%clk 0:03:00.9]} 1... g6 {[%clk 0:02:58.1]} 2. e4 {[%clk 0:03:00.6]}
2... Bg7 {[%clk 0:02:59]} 3. Nf3 {[%clk 0:03:00.6]} 3... a6 {[%clk 0:02:59.2]}
4. a4 {[%clk 0:03:00.1]} 4... d6 {[%clk 0:02:57.7]} 5. Nc3 {[%clk 0:02:58.8]}
5... Nd7 {[%clk 0:02:56.3]} 6. Be2 {[%clk 0:02:53.8]} 6... c5 {[%clk 0:02:53.7]}
7. O-O {[%clk 0:02:53.6]} 7... cxd4 {[%clk 0:02:38.3]} 8. Nxd4 {[%clk
0:02:53.3]} 8... Ngf6 {[%clk 0:02:38.2]} 9. Be3 {[%clk 0:02:48.5]} 9... O-O
{[%clk 0:02:37.9]} 10. Nd5 {[%clk 0:02:43.9]} 10... Nc5 {[%clk 0:02:30.8]} 11.
Nxf6+ {[%clk 0:02:41.7]} 11... Bxf6 {[%clk 0:02:31.7]} 12. f3 {[%clk 0:02:42.2]}
12... Bd7 {[%clk 0:02:27.2]} 13. c3 {[%clk 0:02:34.1]} 13... Rc8 {[%clk
0:02:17.8]} 14. b4 {[%clk 0:02:13.8]} 14... Ne6 {[%clk 0:02:14.7]} 15. Nxe6
{[%clk 0:02:14]} 15... Bxe6 {[%clk 0:02:15.6]} 16. Bd4 {[%clk 0:02:14.3]} 16...
Rxc3 {[%clk 0:02:09.3]} 17. Bxc3 {[%clk 0:02:08.7]} 17... Bxc3 {[%clk
0:02:10.2]} 18. Rb1 {[%clk 0:02:08.2]} 18... Qb6+ {[%clk 0:02:10]} 19. Kh1
{[%clk 0:02:07.5]} 19... Bxb4 {[%clk 0:02:10.2]} 20. f4 {[%clk 0:02:00.7]} 20...
a5 {[%clk 0:02:01.2]} 21. f5 {[%clk 0:02:00.4]} 21... Bc8 {[%clk 0:01:53.5]} 22.
Bc4 {[%clk 0:01:58.6]} 22... gxf5 {[%clk 0:01:37.5]} 23. exf5 {[%clk 0:01:55.3]}
23... Kh8 {[%clk 0:01:27.4]} 24. f6 {[%clk 0:01:52.5]} 24... e6 {[%clk
0:01:16.2]} 25. Qh5 {[%clk 0:01:46.3]} 25... Qc5 {[%clk 0:00:59.3]} 26. Qh6
{[%clk 0:01:40.9]} 26... Rg8 {[%clk 0:00:58.7]} 27. Bd3 {[%clk 0:01:40]} 27...
Qf5 {[%clk 0:00:17.8]} 28. Bxf5 {[%clk 0:01:38.6]} 28... exf5 {[%clk 0:00:18.7]}
29. Rb3 {[%clk 0:01:37.8]} 29... d5 {[%clk 0:00:17.4]} 30. Rh3 {[%clk
0:01:37.6]} 30... Rg6 {[%clk 0:00:17.9]} 31. Qxh7# {[%clk 0:01:37.5]} 1-0

[Event "Early-Titled-Tuesday-Blitz-July-09-2024"]
[Site "Chess.com"]
[Date "2024.07.09"]
[Round "4"]
[White "Akewjon"]
[Black "BogdanDeac"]
[Result "0-1"]
[WhiteElo "2747"]
[BlackElo "3017"]
[TimeControl "180+1"]
[EndTime "8:38:03 PDT"]
[Termination "BogdanDeac won by resignation"]

1. e4 {[%clk 0:03:00.9]} 1... c5 {[%clk 0:02:59.5]} 2. Nf3 {[%clk 0:02:57.9]}
2... d6 {[%clk 0:02:59.3]} 3. d4 {[%clk 0:02:57.4]} 3... cxd4 {[%clk 0:03:00.2]}
4. Nxd4 {[%clk 0:02:58.1]} 4... Nf6 {[%clk 0:03:00.6]} 5. Nc3 {[%clk 0:02:58.3]}
5... e5 {[%clk 0:03:01.2]} 6. Nf3 {[%clk 0:02:46.6]} 6... Nc6 {[%clk 0:02:57.8]}
7. h3 {[%clk 0:02:41.5]} 7... Be7 {[%clk 0:02:55.3]} 8. Be3 {[%clk 0:02:22.9]}
8... h6 {[%clk 0:02:52.4]} 9. Bc4 {[%clk 0:02:18]} 9... Be6 {[%clk 0:02:50.2]}
10. Bb3 {[%clk 0:02:17.6]} 10... a6 {[%clk 0:02:41.8]} 11. Nh4 {[%clk
0:02:11.1]} 11... Qd7 {[%clk 0:02:41.2]} 12. Qf3 {[%clk 0:02:00.7]} 12... Na5
{[%clk 0:02:36.2]} 13. Nf5 {[%clk 0:01:59.5]} 13... Bxf5 {[%clk 0:02:35.9]} 14.
exf5 {[%clk 0:01:59.8]} 14... Nxb3 {[%clk 0:02:34.7]} 15. axb3 {[%clk
0:02:00.7]} 15... d5 {[%clk 0:02:35.1]} 16. Na4 {[%clk 0:01:22.7]} 16... Qc6
{[%clk 0:02:19.5]} 17. Nb6 {[%clk 0:00:45.7]} 17... Rd8 {[%clk 0:02:14.1]} 18.
O-O {[%clk 0:00:33.4]} 18... e4 {[%clk 0:02:11.6]} 19. Qg3 {[%clk 0:00:27.6]}
19... d4 {[%clk 0:02:09.9]} 20. Bf4 {[%clk 0:00:14.7]} 20... Nh5 {[%clk
0:01:57.1]} 21. Qg4 {[%clk 0:00:14.8]} 21... Nxf4 {[%clk 0:01:57.4]} 22. Nc4
{[%clk 0:00:12]} 22... Nd5 {[%clk 0:01:45.2]} 23. Qxg7 {[%clk 0:00:11.5]} 23...
Bf6 {[%clk 0:01:39.8]} 24. Qg4 {[%clk 0:00:10.8]} 24... e3 {[%clk 0:01:40.2]}
25. Rae1 {[%clk 0:00:09.3]} 25... Kf8 {[%clk 0:01:38.9]} 26. fxe3 {[%clk
0:00:08.4]} 26... Nxe3 {[%clk 0:01:39]} 27. Nxe3 {[%clk 0:00:08.4]} 27... dxe3
{[%clk 0:01:39.9]} 28. c3 {[%clk 0:00:09.3]} 28... Rg8 {[%clk 0:01:39]} 29. Qe2
{[%clk 0:00:06.3]} 29... Rd2 {[%clk 0:01:37.9]} 0-1